fUSD/lending_fUSD_20260606
["ID","MTS","AMOUNT","RATE_DAILY","PERIOD"]
[424270986,1780720680000,500.0,0.0003,120]
[424270987,1780720681000,500.0,0.0003,120]
[424270988,1780720682000,500.0,0.0003,120]
[424270989,1780720684000,500.0,0.0003,120]
[424270990,1780720693000,500.0,0.0003,120]
[424270994,1780720989000,152.0,0.00010438,7]
[424270997,1780721013000,152.68714212,0.00030137,120]
[424270999,1780721019000,305.37428424,0.00030137,120]
[424271000,1780721027000,458.06142636,0.00030137,120]
[424271009,1780721229000,300.0,8.6e-05,3]
[424271010,1780721231000,600.0,8.7e-05,3]
[424271012,1780721233000,1000.0,8.8e-05,3]
[424271013,1780721235000,1300.0,8.9e-05,3]
[424271014,1780721237000,1600.0,9e-05,3]
[424271018,1780721239000,24.15511772,8.687e-05,2]
[424271017,1780721239000,175.26703918,8.687e-05,2]
[424271016,1780721239000,232.9,8.687e-05,2]
[424271015,1780721239000,31.1746981,8.687e-05,2]
[424271020,1780721249000,205.423467,8.638e-05,2]
[424271019,1780721249000,226.22263235,8.638e-05,2]
[424271021,1780721249000,250.0,8.638e-05,2]
[424271023,1780721249000,162.0,8.638e-05,2]
[424271024,1780721249000,156.40240843,8.638e-05,2]
[424271025,1780721249000,295.3415452,8.638e-05,2]
[424271026,1780721249000,250.37775007,8.638e-05,2]
[424271027,1780721249000,11.12219695,8.638e-05,2]
[424271022,1780721249000,300.0,8.638e-05,2]
[424271030,1780721311000,-1986.27434876,8.731e-05,2]
[424271031,1780721340000,2000.0,0.00030136,120]
[424271055,1780721432000,-69846.52220112,9.064e-05,2]
[424271059,1780721432000,-500.0,9.088e-05,2]
[424271057,1780721432000,-150.0,9.088e-05,2]
[424271058,1780721432000,-300.0,9.088e-05,2]
[424271062,1780721432000,-197.24337001,9.088e-05,2]
[424271063,1780721432000,-500.0,9.088e-05,2]
[424271060,1780721432000,-289.18971168,9.088e-05,2]
[424271061,1780721432000,-500.0,9.088e-05,2]
[424271075,1780721432000,-500.0,9.088e-05,2]
[424271065,1780721432000,-500.0,9.088e-05,2]
[424271067,1780721432000,-500.0,9.088e-05,2]
[424271069,1780721432000,-500.0,9.088e-05,2]
[424271068,1780721432000,-500.0,9.088e-05,2]
[424271066,1780721432000,-379.99685049,9.088e-05,2]
[424271070,1780721432000,-500.0,9.088e-05,2]
[424271064,1780721432000,-641.09920871,9.088e-05,2]
[424271056,1780721432000,-500.0,9.088e-05,2]
[424271073,1780721432000,-500.0,9.088e-05,2]
[424271054,1780721432000,-2242.92919888,9.064e-05,2]
[424271037,1780721432000,-13.72565124,8.731e-05,2]
[424271038,1780721432000,-198.39831818,8.911e-05,2]
[424271040,1780721432000,-263.01784347,8.916e-05,2]
[424271039,1780721432000,-75.32301675,8.916e-05,2]
[424271041,1780721432000,-161.65913978,8.916e-05,2]
[424271045,1780721432000,-500.0,8.916e-05,2]
[424271044,1780721432000,-500.0,8.916e-05,2]
[424271053,1780721432000,-294.89,9.035e-05,2]
[424271042,1780721432000,-500.0,8.916e-05,2]
[424271046,1780721432000,-503.8580275,8.916e-05,2]
[424271048,1780721432000,-500.0,8.916e-05,2]
[424271047,1780721432000,-504.06705566,8.916e-05,2]
[424271049,1780721432000,-150.0,8.916e-05,2]
[424271052,1780721432000,-239.84274591,9.012e-05,2]
[424271051,1780721432000,-477.75383222,8.916e-05,2]
[424271050,1780721432000,-500.0,8.916e-05,2]
[424271043,1780721432000,-500.0,8.916e-05,2]
[424271079,1780721432000,-500.0,9.088e-05,2]
[424271109,1780721432000,-500.0,9.088e-05,2]
[424271071,1780721432000,-500.0,9.088e-05,2]
[424271093,1780721432000,-500.0,9.088e-05,2]
[424271096,1780721432000,-500.0,9.088e-05,2]
[424271100,1780721432000,-500.0,9.088e-05,2]
[424271101,1780721432000,-500.0,9.088e-05,2]
[424271115,1780721432000,-541.0,9.09e-05,2]
[424271105,1780721432000,-500.0,9.088e-05,2]
[424271107,1780721432000,-500.0,9.088e-05,2]
[424271099,1780721432000,-500.0,9.088e-05,2]
[424271116,1780721432000,-541.0,9.09e-05,2]
[424271108,1780721432000,-327.06943939,9.088e-05,2]
[424271114,1780721432000,-153.28053933,9.089e-05,2]
[424271113,1780721432000,-500.0,9.088e-05,2]
[424271110,1780721432000,-500.0,9.088e-05,2]
[424271111,1780721432000,-500.0,9.088e-05,2]
[424271112,1780721432000,-500.0,9.088e-05,2]
[424271077,1780721432000,-500.0,9.088e-05,2]
[424271104,1780721432000,-500.0,9.088e-05,2]
[424271102,1780721432000,-500.0,9.088e-05,2]
[424271106,1780721432000,-500.0,9.088e-05,2]
[424271094,1780721432000,-500.0,9.088e-05,2]
[424271081,1780721432000,-500.0,9.088e-05,2]
[424271091,1780721432000,-203.49828642,9.088e-05,2]
[424271098,1780721432000,-500.0,9.088e-05,2]
[424271082,1780721432000,-500.0,9.088e-05,2]
[424271083,1780721432000,-500.0,9.088e-05,2]
[424271085,1780721432000,-500.0,9.088e-05,2]
[424271089,1780721432000,-500.0,9.088e-05,2]
[424271084,1780721432000,-500.0,9.088e-05,2]
[424271080,1780721432000,-500.0,9.088e-05,2]
[424271087,1780721432000,-500.0,9.088e-05,2]
[424271088,1780721432000,-500.0,9.088e-05,2]
[424271090,1780721432000,-500.0,9.088e-05,2]
[424271092,1780721432000,-500.0,9.088e-05,2]
[424271095,1780721432000,-500.0,9.088e-05,2]
[424271103,1780721432000,-500.0,9.088e-05,2]
[424271097,1780721432000,-500.0,9.088e-05,2]
[424271086,1780721432000,-500.0,9.088e-05,2]
[424271125,1780721433000,-541.0,9.09e-05,2]
[424271127,1780721433000,-541.0,9.09e-05,2]
[424271128,1780721433000,-541.0,9.09e-05,2]
[424271129,1780721433000,-541.0,9.09e-05,2]
[424271124,1780721433000,-541.0,9.09e-05,2]
[424271120,1780721433000,-541.0,9.09e-05,2]
[424271123,1780721433000,-541.0,9.09e-05,2]
[424271121,1780721433000,-541.0,9.09e-05,2]
[424271119,1780721433000,-541.0,9.09e-05,2]
[424271117,1780721433000,-541.0,9.09e-05,2]
[424271118,1780721433000,-541.0,9.09e-05,2]
[424271122,1780721433000,-541.0,9.09e-05,2]
[424271126,1780721433000,-541.0,9.09e-05,2]
[424271132,1780721433000,-541.0,9.09e-05,2]
[424271131,1780721433000,-541.0,9.09e-05,2]
[424271130,1780721433000,-541.0,9.09e-05,2]
[424271140,1780721433000,-983509.35293424,9.164e-05,2]
[424271142,1780721433000,-86665.44698703,9.164e-05,2]
[424271139,1780721433000,-168.68,9.161e-05,2]
[424271137,1780721433000,-541.0,9.09e-05,2]
[424271135,1780721433000,-541.0,9.09e-05,2]
[424271144,1780721433000,-1254.41808677,9.164e-05,2]
[424271136,1780721433000,-541.0,9.09e-05,2]
[424271141,1780721433000,-129987.93974842,9.164e-05,2]
[424271134,1780721433000,-541.0,9.09e-05,2]
[424271143,1780721433000,-194521.70005569,9.164e-05,2]
[424271133,1780721433000,-541.0,9.09e-05,2]
[424271138,1780721433000,-542.25939025,9.09e-05,2]
[424271153,1780721438000,-1195.63937521,9.164e-05,2]
[424271152,1780721438000,-360.90989524,9.164e-05,2]
[424271151,1780721438000,-756.59999997,9.164e-05,2]
[424271169,1780721440000,-421.0,9.19e-05,2]
[424271168,1780721440000,-421.0,9.19e-05,2]
[424271167,1780721440000,-421.0,9.19e-05,2]
[424271166,1780721440000,-421.0,9.19e-05,2]
[424271164,1780721440000,-421.0,9.19e-05,2]
[424271162,1780721440000,-421.0,9.19e-05,2]
[424271165,1780721440000,-421.0,9.19e-05,2]
[424271158,1780721440000,-158.06927802,9.19e-05,2]
[424271159,1780721440000,-421.0,9.19e-05,2]
[424271161,1780721440000,-421.0,9.19e-05,2]
[424271160,1780721440000,-421.0,9.19e-05,2]
[424271157,1780721440000,-98074.80509804,9.164e-05,2]
[424271156,1780721440000,-3144.08774939,9.164e-05,2]
[424271154,1780721440000,-529.10007,9.164e-05,2]
[424271163,1780721440000,-421.0,9.19e-05,2]
[424271171,1780721440000,-421.0,9.19e-05,2]
[424271181,1780721440000,-421.0,9.19e-05,2]
[424271172,1780721440000,-421.0,9.19e-05,2]
[424271174,1780721440000,-421.0,9.19e-05,2]
[424271185,1780721440000,-500.0,9.19e-05,2]
[424271187,1780721440000,-500.0,9.19e-05,2]
[424271184,1780721440000,-500.0,9.19e-05,2]
[424271183,1780721440000,-500.0,9.19e-05,2]
[424271182,1780721440000,-500.0,9.19e-05,2]
[424271177,1780721440000,-421.0,9.19e-05,2]
[424271186,1780721440000,-500.0,9.19e-05,2]
[424271180,1780721440000,-421.0,9.19e-05,2]
[424271175,1780721440000,-421.0,9.19e-05,2]
[424271179,1780721440000,-421.0,9.19e-05,2]
[424271176,1780721440000,-421.0,9.19e-05,2]
[424271170,1780721440000,-421.0,9.19e-05,2]
[424271173,1780721440000,-421.0,9.19e-05,2]
[424271178,1780721440000,-421.0,9.19e-05,2]
[424271211,1780721441000,-2500.0,9.264e-05,2]
[424271213,1780721441000,-191.32910387,9.318e-05,2]
[424271212,1780721441000,-191.56139431,9.318e-05,2]
[424271215,1780721441000,-191.5613943,9.318e-05,2]
[424271216,1780721441000,-190.62685279,9.334e-05,2]
[424271214,1780721441000,-191.32910386,9.318e-05,2]
[424271217,1780721441000,-190.62685279,9.334e-05,2]
[424271219,1780721441000,-500.0,9.361e-05,2]
[424271220,1780721441000,-151.0,9.361e-05,2]
[424271228,1780721441000,-151.0,9.461e-05,2]
[424271218,1780721441000,-30075.0,9.342e-05,2]
[424271227,1780721441000,-151.0,9.461e-05,2]
[424271223,1780721441000,-176.00672803,9.364e-05,2]
[424271226,1780721441000,-1242.2138,9.364e-05,2]
[424271210,1780721441000,-396.32957951,9.19e-05,2]
[424271225,1780721441000,-2500000.0,9.364e-05,2]
[424271222,1780721441000,-16639.59646462,9.363e-05,2]
[424271230,1780721441000,-151.0,9.461e-05,2]
[424271236,1780721441000,-250.0,9.604e-05,2]
[424271221,1780721441000,-500.0,9.362e-05,2]
[424271224,1780721441000,-33261.1868,9.364e-05,2]
[424271203,1780721441000,-500.0,9.19e-05,2]
[424271209,1780721441000,-500.0,9.19e-05,2]
[424271229,1780721441000,-151.0,9.461e-05,2]
[424271188,1780721441000,-500.0,9.19e-05,2]
[424271190,1780721441000,-500.0,9.19e-05,2]
[424271189,1780721441000,-500.0,9.19e-05,2]
[424271193,1780721441000,-500.0,9.19e-05,2]
[424271192,1780721441000,-500.0,9.19e-05,2]
[424271191,1780721441000,-440.38797832,9.19e-05,2]
[424271194,1780721441000,-359.92465112,9.19e-05,2]
[424271196,1780721441000,-500.0,9.19e-05,2]
[424271208,1780721441000,-500.0,9.19e-05,2]
[424271201,1780721441000,-455.95353758,9.19e-05,2]
[424271205,1780721441000,-500.0,9.19e-05,2]
[424271200,1780721441000,-500.0,9.19e-05,2]
[424271199,1780721441000,-500.0,9.19e-05,2]
[424271202,1780721441000,-500.0,9.19e-05,2]
[424271197,1780721441000,-500.0,9.19e-05,2]
[424271204,1780721441000,-500.0,9.19e-05,2]
[424271195,1780721441000,-500.0,9.19e-05,2]
[424271207,1780721441000,-500.0,9.19e-05,2]
[424271206,1780721441000,-500.0,9.19e-05,2]
[424271198,1780721441000,-500.0,9.19e-05,2]
[424271235,1780721441000,-250.0,9.604e-05,2]
[424271268,1780721441000,-287.0,0.00010996,2]
[424271238,1780721441000,-299.99,9.67e-05,2]
[424271263,1780721441000,-595.05,0.00010488,2]
[424271265,1780721441000,-2000.0,0.00010914,2]
[424271262,1780721441000,-8257.34,0.00010475,2]
[424271266,1780721441000,-150.0,0.00010959,2]
[424271267,1780721441000,-1096.42862284,0.00010963,2]
[424271272,1780721441000,-22636.74977934,0.00011099,2]
[424271273,1780721441000,-22636.74977934,0.00011099,2]
[424271274,1780721441000,-16773.16480747,0.00011099,2]
[424271275,1780721441000,-16773.16480738,0.00011099,2]
[424271276,1780721441000,-16773.16480738,0.00011099,2]
[424271277,1780721441000,-16773.16480738,0.00011099,2]
[424271281,1780721441000,-16773.16480738,0.00011231,2]
[424271278,1780721441000,-166.67,0.00011107,2]
[424271279,1780721441000,-22636.74977934,0.00011143,2]
[424271280,1780721441000,-500.0,0.00011178,2]
[424271282,1780721441000,-150.0,0.00011326,2]
[424271283,1780721441000,-168.68,0.00011452,2]
[424271284,1780721441000,-144735.06173623,0.00011487,2]
[424271239,1780721441000,-300.0,9.67e-05,2]
[424271264,1780721441000,-455.76,0.00010538,2]
[424271259,1780721441000,-150.99,0.00010475,2]
[424271261,1780721441000,-9999.99,0.00010475,2]
[424271270,1780721441000,-1000.0,0.00011092,2]
[424271237,1780721441000,-500.0,9.636e-05,2]
[424271231,1780721441000,-151.0,9.461e-05,2]
[424271234,1780721441000,-183.74,9.575e-05,2]
[424271232,1780721441000,-151.0,9.461e-05,2]
[424271233,1780721441000,-14734.86,9.507e-05,2]
[424271240,1780721441000,-1160.56,9.67e-05,2]
[424271245,1780721441000,-6063.7,9.67e-05,2]
[424271271,1780721441000,-22636.74977941,0.00011099,2]
[424271247,1780721441000,-2000.0,9.823e-05,2]
[424271241,1780721441000,-2393.17,9.67e-05,2]
[424271243,1780721441000,-499.99,9.67e-05,2]
[424271256,1780721441000,-52280.90492403,0.00010058,2]
[424271251,1780721441000,-255.0,9.997e-05,2]
[424271253,1780721441000,-1000.0,9.999e-05,2]
[424271254,1780721441000,-255.27340314,0.0001,2]
[424271255,1780721441000,-255.27340314,0.0001,2]
[424271257,1780721441000,-168.68,0.00010307,2]
[424271258,1780721441000,-1000.0,0.00010434,2]
[424271260,1780721441000,-1953.39,0.00010475,2]
[424271249,1780721441000,-644.20602625,9.863e-05,2]
[424271269,1780721441000,-228.14438436,0.00011063,2]
[424271293,1780721443000,-400.26377362,0.00011487,2]
[424271292,1780721443000,-33744.4542685,0.00011487,2]
[424271290,1780721443000,-23920.0,0.00011487,2]
[424271291,1780721443000,-645.50197003,0.00011487,2]
[424271311,1780721446000,-659.18461018,0.00011487,2]
[424271310,1780721446000,-322.8916,0.00011487,2]
[424271313,1780721446000,-2643.95126729,0.00011487,2]
[424271316,1780721446000,-302.2362,0.00011487,2]
[424271314,1780721446000,-2935.74081743,0.00011487,2]
[424271315,1780721446000,-3977.65187605,0.00011487,2]
[424271312,1780721446000,-3794.16426558,0.00011487,2]
[424271339,1780721469000,152.0,0.00010441,7]
[424271340,1780721493000,300.0,0.00030137,120]
[424271344,1780721499000,18.06600412,8.631e-05,2]
[424271342,1780721499000,181.67269453,8.631e-05,2]
[424271341,1780721499000,143.85780305,8.631e-05,2]
[424271343,1780721499000,156.4034983,8.631e-05,2]
[424271360,1780722015000,166.666648,0.00010137,30]
[424271364,1780722167000,281.93399588,8.424e-05,2]
[424271365,1780722241000,157.37,0.00028973,120]
[424271380,1780722513000,-1000.0,8.122e-05,2]
[424271381,1780722513000,-250.0,8.146e-05,2]
[424271382,1780722513000,-239.893581,8.171e-05,2]
[424271383,1780722513000,-975.77,8.219e-05,2]
[424271387,1780722513000,-500.0,8.705e-05,2]
[424271386,1780722513000,-160.0,8.452e-05,2]
[424271385,1780722513000,-291.17241637,8.424e-05,2]
[424271388,1780722513000,-500.0,8.705e-05,2]
[424271384,1780722513000,-1426.89358775,8.424e-05,2]
[424271392,1780722514000,-370.51614873,8.705e-05,2]
[424271390,1780722514000,-81.04920713,8.705e-05,2]
[424271389,1780722514000,-418.95079287,8.705e-05,2]
[424271391,1780722514000,-500.0,8.705e-05,2]
[424271393,1780722514000,-500.0,8.705e-05,2]
[424271399,1780722514000,-393.35715975,8.705e-05,2]
[424271397,1780722514000,-236.22016661,8.705e-05,2]
[424271395,1780722514000,-500.0,8.705e-05,2]
[424271396,1780722514000,-267.71278057,8.705e-05,2]
[424271398,1780722514000,-500.0,8.705e-05,2]
[424271400,1780722514000,-43.70170596,8.705e-05,2]
[424271394,1780722514000,-500.0,8.705e-05,2]
[424271404,1780722538000,-500.0,8.705e-05,2]
[424271401,1780722538000,-200.0,8.058e-05,2]
[424271403,1780722538000,-500.0,8.705e-05,2]
[424271402,1780722538000,-500.0,8.705e-05,2]
[424271407,1780722539000,-500.0,8.705e-05,2]
[424271408,1780722539000,-500.0,8.705e-05,2]
[424271405,1780722539000,-526.06348884,8.705e-05,2]
[424271406,1780722539000,-500.0,8.705e-05,2]
[424271410,1780722539000,-140.40156916,8.705e-05,2]
[424271411,1780722539000,-500.0,8.705e-05,2]
[424271409,1780722539000,-359.59843084,8.705e-05,2]
[424271413,1780722539000,-500.0,8.705e-05,2]
[424271416,1780722539000,-500.0,8.705e-05,2]
[424271414,1780722539000,-500.0,8.705e-05,2]
[424271412,1780722539000,-500.0,8.705e-05,2]
[424271422,1780722539000,-195.53791408,8.705e-05,2]
[424271421,1780722539000,-500.0,8.705e-05,2]
[424271420,1780722539000,-500.0,8.705e-05,2]
[424271419,1780722539000,-54.73964948,8.705e-05,2]
[424271415,1780722539000,-500.0,8.705e-05,2]
[424271417,1780722539000,-500.0,8.705e-05,2]
[424271418,1780722539000,-445.26035052,8.705e-05,2]
[424271423,1780722540000,2000.0,0.00030136,120]
[424271431,1780722564000,-1711.33263918,8.058e-05,2]
[424271430,1780722564000,-4274.09394774,8.058e-05,2]
[424271429,1780722564000,-3975.41394774,8.058e-05,2]
[424271428,1780722564000,-298.68,8.019e-05,2]
[424271433,1780722588000,-4294.64976132,8.058e-05,2]
[424271444,1780722631000,-2349.99646907,8.66e-05,2]
[424271443,1780722631000,-479.36970402,8.058e-05,2]
[424271445,1780722631000,-710.66019793,8.66e-05,2]
[424271446,1780722631000,-160.0,8.66e-05,2]
[424271447,1780722631000,-201.50212109,8.674e-05,2]
[424271450,1780722631000,-14355.68011607,8.675e-05,2]
[424271449,1780722631000,-151.30328363,8.674e-05,2]
[424271451,1780722631000,-1019321.63544369,8.675e-05,2]
[424271452,1780722631000,-73974.74317402,8.675e-05,2]
[424271453,1780722631000,-171014.22242082,8.675e-05,2]
[424271454,1780722631000,-514.62729366,8.675e-05,2]
[424271448,1780722631000,-51.12951455,8.674e-05,2]
[424271473,1780722637000,-568.53506614,8.675e-05,2]
[424271471,1780722637000,-310.0475839,8.674e-05,2]
[424271472,1780722637000,-906.13036176,8.675e-05,2]
[424271470,1780722637000,-93.3000011,8.674e-05,2]
[424271469,1780722637000,-406.6999989,8.674e-05,2]
[424271480,1780722639000,-1219344.42612384,8.675e-05,2]
[424271481,1780722639000,-150.0,8.704e-05,2]
[424271483,1780722639000,-250.0,8.705e-05,2]
[424271482,1780722639000,-300.0,8.704e-05,2]
[424271513,1780722640000,-190.62685279,8.96e-05,2]
[424271522,1780722640000,-1242.2138,9.064e-05,2]
[424271518,1780722640000,-153.15619927,9.019e-05,2]
[424271520,1780722640000,-151.0,9.061e-05,2]
[424271524,1780722640000,-602.0,9.397e-05,2]
[424271519,1780722640000,-151.0,9.061e-05,2]
[424271515,1780722640000,-1543.1559,8.964e-05,2]
[424271516,1780722640000,-300.54393102,8.989e-05,2]
[424271517,1780722640000,-176.00672803,9.019e-05,2]
[424271521,1780722640000,-33261.1868,9.064e-05,2]
[424271526,1780722640000,-500.0,9.572e-05,2]
[424271525,1780722640000,-2000.0,9.477e-05,2]
[424271528,1780722640000,-250.0,9.574e-05,2]
[424271531,1780722640000,-388.27088083,9.951e-05,2]
[424271532,1780722640000,-169.96514586,0.0001,2]
[424271535,1780722640000,-265.21449048,0.0001,2]
[424271527,1780722640000,-255.0,9.574e-05,2]
[424271534,1780722640000,-1644.63690168,0.0001,2]
[424271533,1780722640000,-169.96514586,0.0001,2]
[424271536,1780722640000,-1014.8467582,0.0001,2]
[424271538,1780722640000,-340.0,0.0001,2]
[424271539,1780722640000,-340.0,0.0001,2]
[424271541,1780722640000,-255.27340314,0.0001,2]
[424271537,1780722640000,-172.86527348,0.0001,2]
[424271540,1780722640000,-340.83087181,0.0001,2]
[424271545,1780722640000,-1000.0,0.00010136,2]
[424271543,1780722640000,-3257.96,0.00010027,2]
[424271530,1780722640000,-500.0,9.846e-05,2]
[424271523,1780722640000,-437.0,9.26e-05,2]
[424271499,1780722640000,-2393.17,8.864e-05,2]
[424271512,1780722640000,-30075.0,8.959e-05,2]
[424271484,1780722640000,-200.0,8.756e-05,2]
[424271487,1780722640000,-300.0,8.809e-05,2]
[424271485,1780722640000,-1537.63,8.773e-05,2]
[424271486,1780722640000,-168.68,8.776e-05,2]
[424271488,1780722640000,-300.0,8.809e-05,2]
[424271493,1780722640000,-4178.8879,8.832e-05,2]
[424271494,1780722640000,-273.42,8.857e-05,2]
[424271496,1780722640000,-9999.99,8.864e-05,2]
[424271490,1780722640000,-389.162,8.81e-05,2]
[424271498,1780722640000,-9999.99,8.864e-05,2]
[424271489,1780722640000,-7425.54,8.81e-05,2]
[424271492,1780722640000,-1500000.0,8.831e-05,2]
[424271491,1780722640000,-281.40949776,8.816e-05,2]
[424271514,1780722640000,-190.62685279,8.96e-05,2]
[424271497,1780722640000,-9999.99,8.864e-05,2]
[424271495,1780722640000,-8257.34,8.864e-05,2]
[424271501,1780722640000,-500.0,8.89e-05,2]
[424271508,1780722640000,-153.15619927,8.945e-05,2]
[424271510,1780722640000,-153.15619926,8.945e-05,2]
[424271507,1780722640000,-250.0,8.934e-05,2]
[424271511,1780722640000,-1160.56,8.945e-05,2]
[424271509,1780722640000,-153.15619927,8.945e-05,2]
[424271500,1780722640000,-499.99,8.864e-05,2]
[424271502,1780722640000,-2500.0,8.89e-05,2]
[424271503,1780722640000,-16639.59646462,8.931e-05,2]
[424271504,1780722640000,-6063.7,8.932e-05,2]
[424271505,1780722640000,-299.99,8.932e-05,2]
[424271506,1780722640000,-150.99,8.932e-05,2]
[424271542,1780722640000,-255.27340314,0.0001,2]
[424271544,1780722640000,-500.0,0.0001012,2]
[424271529,1780722640000,-644.20602625,9.574e-05,2]
[424271546,1780722640000,-421.0,0.00010221,2]
[424271579,1780722640000,-421.0,0.00010221,2]
[424271580,1780722640000,-500.0,0.00010221,2]
[424271581,1780722640000,-359.92465112,0.00010221,2]
[424271584,1780722640000,-500.0,0.00010221,2]
[424271582,1780722640000,-421.0,0.00010221,2]
[424271583,1780722640000,-500.0,0.00010221,2]
[424271586,1780722640000,-500.0,0.00010221,2]
[424271585,1780722640000,-421.0,0.00010221,2]
[424271589,1780722640000,-500.0,0.00010221,2]
[424271591,1780722640000,-500.0,0.00010221,2]
[424271593,1780722640000,-421.0,0.00010221,2]
[424271592,1780722640000,-396.32957951,0.00010221,2]
[424271590,1780722640000,-500.0,0.00010221,2]
[424271577,1780722640000,-421.0,0.00010221,2]
[424271595,1780722640000,-421.0,0.00010221,2]
[424271598,1780722640000,-440.38797832,0.00010221,2]
[424271597,1780722640000,-421.0,0.00010221,2]
[424271599,1780722640000,-3257.96,0.00010278,2]
[424271600,1780722640000,-153.15619927,0.00010302,2]
[424271602,1780722640000,-3599.0072789,0.00010354,2]
[424271596,1780722640000,-421.0,0.00010221,2]
[424271604,1780722640000,-3248.2696436,0.00010354,2]
[424271603,1780722640000,-50737.4093046,0.00010354,2]
[424271605,1780722640000,-34284.1558253,0.00010354,2]
[424271606,1780722640000,-13593.4338851,0.00010354,2]
[424271607,1780722640000,-500.0,0.00010394,2]
[424271547,1780722640000,-421.0,0.00010221,2]
[424271608,1780722640000,-395.06894484,0.00010474,2]
[424271601,1780722640000,-154211.0060678,0.00010354,2]
[424271587,1780722640000,-500.0,0.00010221,2]
[424271594,1780722640000,-421.0,0.00010221,2]
[424271578,1780722640000,-500.0,0.00010221,2]
[424271548,1780722640000,-500.0,0.00010221,2]
[424271550,1780722640000,-500.0,0.00010221,2]
[424271588,1780722640000,-500.0,0.00010221,2]
[424271560,1780722640000,-500.0,0.00010221,2]
[424271561,1780722640000,-455.95353758,0.00010221,2]
[424271549,1780722640000,-421.0,0.00010221,2]
[424271562,1780722640000,-421.0,0.00010221,2]
[424271554,1780722640000,-421.0,0.00010221,2]
[424271552,1780722640000,-421.0,0.00010221,2]
[424271551,1780722640000,-500.0,0.00010221,2]
[424271553,1780722640000,-500.0,0.00010221,2]
[424271558,1780722640000,-500.0,0.00010221,2]
[424271557,1780722640000,-500.0,0.00010221,2]
[424271555,1780722640000,-500.0,0.00010221,2]
[424271559,1780722640000,-421.0,0.00010221,2]
[424271556,1780722640000,-421.0,0.00010221,2]
[424271570,1780722640000,-421.0,0.00010221,2]
[424271573,1780722640000,-421.0,0.00010221,2]
[424271574,1780722640000,-500.0,0.00010221,2]
[424271569,1780722640000,-500.0,0.00010221,2]
[424271572,1780722640000,-500.0,0.00010221,2]
[424271576,1780722640000,-500.0,0.00010221,2]
[424271568,1780722640000,-421.0,0.00010221,2]
[424271575,1780722640000,-421.0,0.00010221,2]
[424271566,1780722640000,-421.0,0.00010221,2]
[424271565,1780722640000,-500.0,0.00010221,2]
[424271567,1780722640000,-500.0,0.00010221,2]
[424271563,1780722640000,-500.0,0.00010221,2]
[424271564,1780722640000,-421.0,0.00010221,2]
[424271653,1780722641000,-1921.75634917,0.0001138,2]
[424271666,1780722641000,-165.12182,0.00011487,2]
[424271656,1780722641000,-151.0,0.00011484,2]
[424271654,1780722641000,-17168.14687264,0.00011387,2]
[424271649,1780722641000,-17168.14687264,0.00011113,2]
[424271646,1780722641000,-165.12182,0.00011099,2]
[424271644,1780722641000,-165.12182,0.00011099,2]
[424271647,1780722641000,-151.0,0.00011099,2]
[424271648,1780722641000,-250.44445454,0.0001111,2]
[424271650,1780722641000,-22665.64802291,0.00011113,2]
[424271651,1780722641000,-1000.0,0.00011123,2]
[424271667,1780722641000,-165.12182,0.00011487,2]
[424271652,1780722641000,-1000.0,0.00011161,2]
[424271659,1780722641000,-151.0,0.00011487,2]
[424271673,1780722641000,-228.14438436,0.00011655,2]
[424271655,1780722641000,-22665.64802291,0.00011387,2]
[424271658,1780722641000,-151.0,0.00011487,2]
[424271660,1780722641000,-587.83358165,0.00011487,2]
[424271661,1780722641000,-157.624035,0.00011487,2]
[424271657,1780722641000,-151.0,0.00011487,2]
[424271663,1780722641000,-258.573266,0.00011487,2]
[424271665,1780722641000,-165.12182,0.00011487,2]
[424271664,1780722641000,-165.12182,0.00011487,2]
[424271668,1780722641000,-154.061512,0.00011487,2]
[424271672,1780722641000,-2000.0,0.00011583,2]
[424271671,1780722641000,-150.0,0.0001156,2]